fUST/lending_fUST_20240220
["ID","MTS","AMOUNT","RATE_DAILY","PERIOD"]
[314454256,1708366243368,-11947.53780033,0.00026989,7]
[314454259,1708366243425,-183189.95107396,0.00026989,7]
[314454260,1708366243435,-52179.3855487,0.00027,2]
[314454262,1708366243446,-1000.0,0.00027,27]
[314454264,1708366243456,-5987.91852706,0.00027,2]
[314454266,1708366243468,-300.0,0.00027,13]
[314454268,1708366243478,-153.0,0.00027,2]
[314454270,1708366243488,-300.0,0.00027157,2]
[314454273,1708366243497,-580.0,0.000272,2]
[314454276,1708366243507,-2350.81822518,0.00027297,2]
[314454278,1708366243517,-2503.12607363,0.00027312,2]
[314454280,1708366243526,-300.0,0.00027326,2]
[314454282,1708366243536,-19481.29649292,0.00027381,2]
[314454284,1708366243546,-194.12483116,0.00027395,2]
[314454285,1708366243558,-156.05011263,0.00027396,2]
[314454286,1708366243568,-285.41529252,0.00027396,2]
[314454287,1708366243577,-500.0,0.00027397,2]
[314454288,1708366243587,-500.0,0.00027397,2]
[314454289,1708366243596,-500.0,0.00027397,2]
[314454290,1708366243606,-500.0,0.00027397,2]
[314454291,1708366243615,-500.0,0.00027397,2]
[314454292,1708366243624,-500.0,0.00027397,2]
[314454293,1708366243634,-500.0,0.00027397,2]
[314454294,1708366243644,-500.0,0.00027397,2]
[314454295,1708366243653,-503.49593108,0.00027397,2]
[314454297,1708366243662,-954.69,0.00027397,2]
[314454299,1708366243671,-500.0,0.00027397,2]
[314454300,1708366243680,-500.0,0.00027397,2]
[314454301,1708366243690,-500.0,0.00027397,2]
[314454302,1708366243699,-500.0,0.00027397,2]
[314454303,1708366243708,-540.31214767,0.00027397,2]
[314454304,1708366243719,-200.0,0.00027397,2]
[314454305,1708366243729,-500.0,0.00027397,2]
[314454306,1708366243738,-334.32560697,0.00027397,2]
[314454307,1708366243748,-1067.21,0.00027397,2]
[314454308,1708366243758,-621.77,0.00027397,2]
[314454309,1708366243767,-500.0,0.00027397,2]
[314454310,1708366243777,-1291.91,0.00027397,2]
[314454311,1708366243786,-500.0,0.00027397,2]
[314454312,1708366243796,-500.0,0.00027397,2]
[314454313,1708366243805,-500.0,0.00027397,2]
[314454314,1708366243815,-500.0,0.00027397,2]
[314454315,1708366243824,-501.85859077,0.00027397,2]
[314454317,1708366243833,-500.0,0.00027397,2]
[314454318,1708366243843,-500.0,0.00027397,2]
[314454320,1708366243852,-500.0,0.00027397,2]
[314454322,1708366243861,-541.22,0.00027397,2]
[314454324,1708366243870,-1820.61,0.00027397,2]
[314454326,1708366243879,-500.0,0.00027397,2]
[314454328,1708366243888,-500.0,0.00027397,2]
[314454330,1708366243898,-500.0,0.00027397,2]
[314454332,1708366243907,-500.0,0.00027397,2]
[314454333,1708366243916,-520.0,0.00027397,2]
[314454334,1708366243924,-1000.0,0.00027397,2]
[314454335,1708366243934,-476.29224553,0.00027397,2]
[314454336,1708366243943,-500.0,0.00027397,2]
[314454337,1708366243953,-500.0,0.00027397,2]
[314454338,1708366243962,-614.62,0.00027397,2]
[314454339,1708366243972,-500.0,0.00027397,2]
[314454340,1708366243982,-500.0,0.00027397,2]
[314454341,1708366243991,-154.53459983,0.00027397,2]
[314454342,1708366244000,-500.0,0.00027397,2]
[314454343,1708366244009,-1000.0,0.00027397,2]
[314454344,1708366244019,-282.49103997,0.00027397,2]
[314454345,1708366244027,-500.0,0.00027397,2]
[314454346,1708366244037,-500.0,0.00027397,2]
[314454347,1708366244046,-500.0,0.00027397,2]
[314454348,1708366244055,-500.0,0.00027397,2]
[314454349,1708366244064,-500.0,0.00027397,2]
[314454350,1708366244073,-537.2,0.00027397,2]
[314454351,1708366244083,-532.05,0.00027397,2]
[314454352,1708366244092,-500.0,0.00027397,2]
[314454353,1708366244102,-500.0,0.00027397,2]
[314454354,1708366244111,-500.0,0.00027397,2]
[314454355,1708366244120,-500.0,0.00027397,2]
[314454356,1708366244129,-500.0,0.00027397,2]
[314454357,1708366244139,-2350.38,0.00027397,2]
[314454358,1708366244148,-500.0,0.00027397,2]
[314454359,1708366244157,-500.0,0.00027397,2]
[314454360,1708366244166,-500.0,0.00027397,2]
[314454361,1708366244176,-500.0,0.00027397,2]
[314454362,1708366244185,-500.0,0.00027397,2]
[314454363,1708366244195,-500.0,0.00027397,2]
[314454364,1708366244204,-500.0,0.00027397,2]
[314454365,1708366244213,-500.0,0.00027397,2]
[314454366,1708366244224,-500.0,0.00027397,2]
[314454367,1708366244233,-500.0,0.00027397,2]
[314454368,1708366244242,-500.0,0.00027397,2]
[314454369,1708366244252,-491.85164277,0.00027397,2]
[314454370,1708366244261,-500.0,0.00027397,2]
[314454371,1708366244271,-500.0,0.00027397,2]
[314454372,1708366244285,-500.0,0.00027397,2]
[314454373,1708366244294,-500.0,0.00027397,2]
[314454374,1708366244304,-500.0,0.00027397,2]
[314454375,1708366244314,-1153.17,0.00027397,2]
[314454376,1708366244324,-500.0,0.00027397,2]
[314454377,1708366244333,-500.0,0.00027397,2]
[314454378,1708366244342,-500.0,0.00027397,2]
[314454379,1708366244352,-500.0,0.00027397,2]
[314454380,1708366244362,-1024.68,0.00027397,2]
[314454381,1708366244371,-500.0,0.00027397,2]
[314454382,1708366244380,-500.0,0.00027397,2]
[314454383,1708366244390,-500.0,0.00027397,2]
[314454384,1708366244400,-505.80547838,0.00027397,2]
[314454385,1708366244409,-1068.83,0.00027397,2]
[314454386,1708366244418,-994.78,0.00027397,2]
[314454387,1708366244427,-500.0,0.00027397,2]
[314454388,1708366244437,-500.0,0.00027397,2]
[314454389,1708366244446,-555.64,0.00027397,2]
[314454390,1708366244455,-500.0,0.00027397,2]
[314454391,1708366244464,-500.0,0.00027397,2]
[314454392,1708366244474,-500.0,0.00027397,2]
[314454393,1708366244484,-500.0,0.00027397,2]
[314454394,1708366244494,-500.0,0.00027397,2]
[314454395,1708366244503,-154.37782467,0.00027397,2]
[314454396,1708366244513,-500.0,0.00027397,2]
[314454397,1708366244522,-500.0,0.00027397,2]
[314454398,1708366244532,-500.0,0.00027397,2]
[314454399,1708366244541,-500.0,0.00027397,2]
[314454400,1708366244551,-500.0,0.00027397,2]
[314454401,1708366244561,-386.0765516,0.00027397,2]
[314454402,1708366244570,-500.0,0.00027397,2]
[314454403,1708366244580,-500.0,0.00027397,2]
[314454404,1708366244589,-500.0,0.00027397,2]
[314454405,1708366244599,-500.0,0.00027397,2]
[314454406,1708366244608,-500.0,0.00027397,2]
[314454407,1708366244617,-500.0,0.00027397,2]
[314454408,1708366244626,-500.0,0.00027397,2]
[314454409,1708366244635,-500.0,0.00027397,2]
[314454410,1708366244645,-500.0,0.00027397,2]
[314454411,1708366244654,-500.0,0.00027397,2]
[314454412,1708366244664,-500.0,0.00027397,2]
[314454413,1708366244673,-500.0,0.00027397,2]
[314454414,1708366244682,-596.56,0.00027397,2]
[314454415,1708366244692,-500.0,0.00027397,2]
[314454416,1708366244701,-500.0,0.00027397,2]
[314454417,1708366244711,-500.0,0.00027397,2]
[314454418,1708366244723,-500.0,0.00027397,2]
[314454419,1708366244732,-500.0,0.00027397,2]
[314454420,1708366244741,-500.0,0.00027397,2]
[314454421,1708366244751,-500.0,0.00027397,2]
[314454422,1708366244926,-390.56107927,0.00027397,2]
[314454423,1708366244936,-623.47,0.00027397,2]
[314454424,1708366244946,-500.24723348,0.00027397,2]
[314454425,1708366244954,-1317.61,0.00027397,2]
[314454426,1708366244963,-500.0,0.00027397,2]
[314454427,1708366244975,-500.0,0.00027397,2]
[314454428,1708366244984,-2211.12,0.00027397,2]
[314454429,1708366244993,-500.0,0.00027397,2]
[314454430,1708366245003,-500.0,0.00027397,2]
[314454431,1708366245012,-546.13,0.00027397,2]
[314454432,1708366245022,-1412.23,0.00027397,2]
[314454433,1708366245031,-511.85403738,0.00027397,2]
[314454434,1708366245041,-500.0,0.00027397,2]
[314454435,1708366245051,-500.0,0.00027397,2]
[314454436,1708366245061,-656.3,0.00027397,2]
[314454437,1708366245071,-500.0,0.00027397,2]
[314454438,1708366245081,-500.0,0.00027397,2]
[314454439,1708366245091,-500.0,0.00027397,2]
[314454440,1708366245100,-500.0,0.00027397,2]
[314454441,1708366245109,-562.12,0.00027397,2]
[314454442,1708366245119,-6084.2,0.00027397,2]
[314454443,1708366245127,-355.23488628,0.00027397,2]
[314454444,1708366245137,-500.0,0.00027397,2]
[314454445,1708366245147,-575.51,0.00027397,2]
[314454446,1708366245157,-2947.31,0.00027397,2]
[314454447,1708366245166,-547.16,0.00027397,2]
[314454448,1708366245178,-500.0,0.00027397,2]
[314454449,1708366245187,-500.0,0.00027397,2]
[314454450,1708366245196,-652.39,0.00027397,2]
[314454451,1708366245206,-500.0,0.00027397,2]
[314454452,1708366245217,-500.0,0.00027397,2]
[314454453,1708366245226,-500.0,0.00027397,2]
[314454454,1708366245236,-500.0,0.00027397,2]
[314454455,1708366245245,-500.0,0.00027397,2]
[314454456,1708366245256,-500.0,0.00027397,2]
[314454457,1708366245266,-500.0,0.00027397,2]
[314454458,1708366245276,-500.0,0.00027397,2]
[314454459,1708366245287,-5468.83,0.00027397,2]
[314454460,1708366245302,-500.0,0.00027397,2]
[314454461,1708366245311,-500.0,0.00027397,2]
[314454462,1708366245322,-1336.37,0.00027397,2]
[314454463,1708366245331,-500.0,0.00027397,2]
[314454464,1708366245340,-500.0,0.00027397,2]
[314454465,1708366245350,-500.0,0.00027397,2]
[314454466,1708366245360,-500.0,0.00027397,2]
[314454467,1708366245370,-608.11,0.00027397,2]
[314454468,1708366245380,-500.0,0.00027397,2]
[314454469,1708366245389,-535.67,0.00027397,2]
[314454470,1708366245398,-500.0,0.00027397,2]
[314454471,1708366245408,-500.0,0.00027397,2]
[314454472,1708366245418,-500.0,0.00027397,2]
[314454473,1708366245427,-500.0,0.00027397,2]
[314454474,1708366245436,-500.0,0.00027397,2]
[314454475,1708366245446,-492.09727868,0.00027397,2]
[314454476,1708366245456,-968.4,0.00027397,2]
[314454477,1708366245465,-348.18569575,0.00027397,2]
[314454478,1708366245476,-500.0,0.00027397,2]
[314454479,1708366245485,-500.0,0.00027397,15]
[314454480,1708366245495,-513.35012764,0.00027397,2]
[314454481,1708366245504,-500.0,0.00027397,2]
[314454482,1708366245514,-500.0,0.00027397,2]
[314454483,1708366245523,-500.0,0.00027397,2]
[314454484,1708366245532,-402.87915792,0.00027397,2]
[314454485,1708366245542,-265.99829046,0.00027397,2]
[314454486,1708366245552,-500.0,0.00027397,2]
[314454487,1708366245561,-500.0,0.00027397,2]
[314454488,1708366245571,-500.0,0.00027397,2]
[314454489,1708366245580,-500.0,0.00027397,2]
[314454490,1708366245589,-500.0,0.00027397,2]
[314454491,1708366245598,-500.0,0.00027397,2]
[314454492,1708366245607,-500.0,0.00027397,2]
[314454493,1708366245617,-470.08565261,0.00027397,2]
[314454494,1708366245626,-310.99511171,0.00027397,2]
[314454495,1708366245635,-500.0,0.00027397,2]
[314454496,1708366245644,-500.0,0.00027397,2]
[314454497,1708366245653,-500.0,0.00027397,2]
[314454498,1708366245663,-151.0,0.00027397,2]
[314454499,1708366245672,-151.0,0.00027397,2]
[314454500,1708366245681,-151.0,0.00027397,2]
[314454501,1708366245690,-151.0,0.00027397,2]
[314454502,1708366245699,-500.0,0.00027397,2]
[314454503,1708366245708,-151.0,0.00027397,2]
[314454504,1708366245719,-235.788636,0.00027397,2]
[314454505,1708366245729,-500.0,0.00027397,2]
[314454506,1708366245738,-393.55315148,0.00027397,2]
[314454507,1708366245747,-500.0,0.00027397,2]
[314454508,1708366245757,-500.0,0.00027397,2]
[314454509,1708366245766,-500.0,0.00027397,2]
[314454510,1708366245776,-500.0,0.00027397,2]
[314454511,1708366245785,-500.0,0.00027397,2]
[314454512,1708366245795,-500.0,0.00027397,2]
[314454513,1708366245804,-500.0,0.00027397,2]
[314454514,1708366245813,-1984.0,0.00027397,2]
[314454515,1708366245822,-363.94188221,0.00027397,2]
[314454516,1708366245831,-500.0,0.00027397,2]
[314454517,1708366245841,-500.0,0.00027397,2]
[314454518,1708366245850,-500.0,0.00027397,2]
[314454519,1708366245859,-500.0,0.00027397,2]
[314454520,1708366245869,-500.0,0.00027397,2]
[314454521,1708366245878,-500.0,0.00027397,2]
[314454522,1708366245887,-619.56,0.00027397,2]
[314454523,1708366245896,-500.0,0.00027397,2]
[314454525,1708366245906,-500.0,0.00027397,2]
[314454526,1708366245915,-410.82512941,0.00027397,2]
[314454527,1708366245924,-500.0,0.00027397,2]
[314454528,1708366245933,-500.0,0.00027397,2]
[314454529,1708366245942,-500.0,0.00027397,2]
[314454530,1708366245951,-500.0,0.00027397,2]
[314454532,1708366245960,-500.0,0.00027397,2]
[314454533,1708366245970,-500.0,0.00027397,2]
[314454534,1708366245979,-500.0,0.00027397,2]
[314454535,1708366245988,-500.0,0.00027397,2]
[314454536,1708366245997,-800.07,0.00027397,2]
[314454537,1708366246006,-500.0,0.00027397,2]
[314454538,1708366246015,-500.0,0.00027397,2]
[314454539,1708366246024,-211.325192,0.00027397,2]
[314454540,1708366246033,-500.0,0.00027397,2]
[314454541,1708366246043,-500.0,0.00027397,2]
[314454542,1708366246052,-500.0,0.00027397,2]
[314454543,1708366246061,-918.39,0.00027397,2]
[314454544,1708366246070,-500.0,0.00027397,2]
[314454545,1708366246079,-500.0,0.00027397,2]
[314454546,1708366246089,-500.0,0.00027397,2]
[314454547,1708366246099,-1486.09,0.00027397,2]
[314454548,1708366246109,-500.0,0.00027397,2]
[314454549,1708366246119,-500.0,0.00027397,2]
[314454550,1708366246130,-500.0,0.00027397,2]
[314454551,1708366246140,-500.0,0.00027397,2]
[314454552,1708366246150,-500.0,0.00027397,2]
[314454553,1708366246159,-500.0,0.00027397,2]
[314454554,1708366246168,-512.22,0.00027397,2]
[314454555,1708366246177,-566.08,0.00027397,2]
[314454556,1708366246186,-500.0,0.00027397,2]
[314454557,1708366246195,-500.0,0.00027397,2]
[314454558,1708366246204,-1064.99,0.00027397,2]
[314454559,1708366246214,-500.0,0.00027397,2]
[314454560,1708366246224,-500.0,0.00027397,2]
[314454561,1708366246234,-779.59,0.00027397,2]
[314454562,1708366246243,-500.0,0.00027397,2]
[314454563,1708366246253,-500.0,0.00027397,2]
[314454564,1708366246263,-155.0,0.00027397,2]
[314454565,1708366246275,-500.0,0.00027397,2]
[314454566,1708366246285,-500.0,0.00027397,2]
[314454567,1708366246297,-707.3,0.00027397,2]
[314454568,1708366246307,-2715.12,0.00027397,2]
[314454569,1708366246317,-500.0,0.00027397,2]
[314454570,1708366246327,-4354.51,0.00027397,2]
[314454571,1708366246337,-500.0,0.00027397,2]
[314454572,1708366246346,-730.34,0.00027397,2]
[314454573,1708366246355,-500.0,0.00027397,2]
[314454574,1708366246366,-500.0,0.00027397,2]
[314454575,1708366246376,-762.6,0.00027397,2]
[314454576,1708366246385,-500.0,0.00027397,2]
[314454577,1708366246394,-500.0,0.00027397,2]
[314454578,1708366246403,-6461.04,0.00027397,2]
[314454579,1708366246413,-2367.21,0.00027397,2]
[314454580,1708366246422,-500.0,0.00027397,2]
[314454581,1708366246432,-500.0,0.00027397,2]
[314454582,1708366246441,-500.0,0.00027397,2]
[314454583,1708366246450,-500.0,0.00027397,2]
[314454584,1708366246460,-500.0,0.00027397,2]
[314454585,1708366246471,-500.0,0.00027397,2]
[314454586,1708366246481,-872.61,0.00027397,2]
[314454587,1708366246491,-5944.51,0.00027397,2]
[314454588,1708366246500,-480.50317668,0.00027397,2]
[314454589,1708366246510,-500.0,0.00027397,2]
[314454590,1708366246519,-500.0,0.00027397,2]
[314454591,1708366246529,-639.65595359,0.00027397,2]
[314454592,1708366246538,-500.0,0.00027397,2]
[314454593,1708366246548,-500.0,0.00027397,2]
[314454594,1708366246558,-500.0,0.00027397,2]
[314454595,1708366246567,-500.0,0.00027397,2]
[314454596,1708366246577,-500.0,0.00027397,2]
[314454597,1708366246586,-500.0,0.00027397,2]
[314454598,1708366246595,-500.0,0.00027397,2]
[314454599,1708366246605,-264.52356584,0.00027397,2]
[314454600,1708366246614,-500.0,0.00027397,2]
[314454601,1708366246623,-23982.7,0.00027397,2]
[314454602,1708366246632,-500.0,0.00027397,2]
[314454603,1708366246641,-500.0,0.00027397,2]
[314454604,1708366246650,-30584.37,0.00027397,2]
[314454605,1708366246659,-500.0,0.00027397,2]
[314454606,1708366246669,-1000.0,0.00027397,2]
[314454607,1708366246678,-500.0,0.00027397,2]
[314454608,1708366246687,-740.69,0.00027397,2]
[314454609,1708366246696,-1245.39,0.00027397,2]
[314454610,1708366246705,-500.0,0.00027397,2]
[314454611,1708366246715,-500.0,0.00027397,2]
[314454612,1708366246725,-500.0,0.00027397,2]
[314454613,1708366246734,-2474.13,0.00027397,2]
[314454614,1708366246743,-1275.92,0.00027397,2]
[314454615,1708366246753,-1315.7,0.00027397,2]
[314454616,1708366246762,-500.0,0.00027397,2]
[314454617,1708366246771,-500.0,0.00027397,2]
[314454618,1708366246780,-500.0,0.00027397,2]
[314454619,1708366246789,-21614.36,0.00027397,2]
[314454620,1708366246798,-500.0,0.00027397,2]
[314454621,1708366246807,-500.0,0.00027397,2]
[314454622,1708366246816,-15312.26,0.00027397,2]
[314454623,1708366246825,-500.0,0.00027397,2]
[314454624,1708366246835,-4282.84,0.00027397,2]
[314454625,1708366246844,-3516.89,0.00027397,2]
[314454626,1708366246854,-11001.63,0.00027397,2]
[314454627,1708366246863,-33561.85,0.00027397,2]
[314454628,1708366246872,-531.9,0.00027397,2]
[314454629,1708366246881,-500.0,0.00027397,2]
[314454630,1708366246890,-729.88,0.00027397,2]
[314454631,1708366246900,-390.0,0.00027397,2]
[314454632,1708366246909,-500.0,0.00027397,2]
[314454633,1708366246918,-151.0,0.00027397,2]
[314454634,1708366246926,-500.0,0.00027397,2]
[314454635,1708366246936,-405.32086978,0.00027397,2]
[314454636,1708366246946,-15399.97,0.00027397,2]
[314454637,1708366246955,-500.0,0.00027397,2]
[314454638,1708366246963,-500.0,0.00027397,2]
[314454639,1708366246974,-3863.25,0.00027397,2]
[314454640,1708366246983,-500.0,0.00027397,2]
[314454641,1708366246992,-560.2,0.00027397,2]
[314454642,1708366247001,-500.0,0.00027397,2]
[314454643,1708366247010,-656.43,0.00027397,2]
[314454644,1708366247018,-500.0,0.00027397,2]
[314454645,1708366247027,-500.0,0.00027397,2]
[314454646,1708366247036,-154.84046534,0.00027397,2]
[314454647,1708366247045,-3320.73,0.00027397,2]
[314454648,1708366247054,-500.0,0.00027397,2]
[314454649,1708366247063,-500.0,0.00027397,2]
[314454650,1708366247072,-4272.48,0.00027397,2]
[314454651,1708366247081,-500.0,0.00027397,2]
[314454652,1708366247090,-1896.89,0.00027397,2]
[314454653,1708366247099,-500.0,0.00027397,2]
[314454654,1708366247107,-640.01086463,0.00027397,2]
[314454655,1708366247116,-500.0,0.00027397,2]
[314454656,1708366247125,-4402.03,0.00027397,2]
[314454657,1708366247134,-500.0,0.00027397,2]
[314454658,1708366247143,-500.0,0.00027397,2]
[314454659,1708366247152,-500.0,0.00027397,2]
[314454660,1708366247162,-1088.41,0.00027397,2]
[314454661,1708366247171,-500.0,0.00027397,2]
[314454662,1708366247181,-500.0,0.00027397,2]
[314454663,1708366247190,-500.0,0.00027397,2]
[314454664,1708366247199,-500.0,0.00027397,2]
[314454665,1708366247207,-1000.0,0.00027397,2]
[314454666,1708366247218,-3266.94,0.00027397,2]
[314454667,1708366247227,-500.0,0.00027397,2]
[314454668,1708366247235,-805.52,0.00027397,2]
[314454669,1708366247244,-500.0,0.00027397,2]
[314454670,1708366247253,-503.85644619,0.00027397,30]
[314454671,1708366247262,-941.6,0.00027397,2]
[314454672,1708366247273,-500.0,0.00027397,2]
[314454673,1708366247284,-1102.06,0.00027397,2]
[314454674,1708366247293,-1655.98,0.00027397,2]
[314454675,1708366247302,-500.0,0.00027397,2]
[314454676,1708366247311,-500.0,0.00027397,2]
[314454677,1708366247320,-500.0,0.00027397,2]
[314454678,1708366247329,-4792.07,0.00027397,2]
[314454679,1708366247338,-500.0,0.00027397,2]
[314454680,1708366247346,-500.0,0.00027397,2]
[314454681,1708366247356,-500.0,0.00027397,2]
[314454682,1708366247365,-500.0,0.00027397,2]
[314454683,1708366247374,-500.0,0.00027397,2]
[314454684,1708366247382,-500.0,0.00027397,2]
[314454685,1708366247391,-567.58827599,0.00027397,2]
[314454686,1708366247400,-211.49781367,0.00027397,2]
[314454687,1708366247409,-500.0,0.00027397,2]
[314454688,1708366247417,-500.0,0.00027397,2]
[314454689,1708366247426,-1953.34,0.00027397,2]
[314454690,1708366247435,-3372.94,0.00027397,2]
[314454691,1708366247444,-644.54,0.00027397,2]
[314454692,1708366247452,-500.0,0.00027397,2]
[314454693,1708366247461,-500.0,0.00027397,2]
[314454694,1708366247471,-500.0,0.00027397,2]
[314454695,1708366247480,-500.0,0.00027397,2]
[314454696,1708366247489,-500.0,0.00027397,2]
[314454697,1708366247497,-500.0,0.00027397,2]
[314454698,1708366247507,-500.0,0.00027397,2]
[314454699,1708366247515,-500.0,0.00027397,2]
[314454700,1708366247524,-162.36324726,0.00027397,10]
[314454701,1708366247532,-292.8766,0.000274,2]
[314454702,1708366247542,-300.0,0.00027494,2]
[314454703,1708366247550,-500.0,0.00027534,2]
[314454704,1708366247560,-552.132471,0.00027555,2]
[314454705,1708366247569,-341.98068,0.00027555,2]
[314454706,1708366247578,-2350.81822513,0.00027605,2]
[314454707,1708366247587,-300.0,0.00027663,2]
[314454708,1708366247596,-514.61334008,0.00027671,2]
[314454709,1708366247605,-500.0,0.00027671,2]
[314454710,1708366247614,-500.0,0.00027671,2]
[314454711,1708366247623,-500.0,0.00027671,2]
[314454712,1708366247632,-500.0,0.00027671,2]
[314454713,1708366247642,-500.0,0.00027671,2]
[314454714,1708366247652,-404.23733178,0.00027671,2]
[314454715,1708366247662,-500.0,0.00027671,2]
[314454716,1708366247671,-954.69,0.00027671,2]
[314454717,1708366247680,-500.0,0.00027671,2]
[314454718,1708366247690,-500.0,0.00027671,2]
[314454719,1708366247699,-500.0,0.00027671,2]
[314454720,1708366247709,-500.0,0.00027671,2]
[314454721,1708366247719,-200.0,0.00027671,2]
[314454722,1708366247728,-500.0,0.00027671,2]
[314454723,1708366247736,-1067.21,0.00027671,2]
[314454724,1708366247746,-621.77,0.00027671,2]
[314454725,1708366247755,-503.07737209,0.00027671,2]
[314454726,1708366247764,-1291.91,0.00027671,2]
[314454727,1708366247773,-500.0,0.00027671,2]
[314454728,1708366247782,-487.31146362,0.00027671,2]
[314454729,1708366247791,-536.8117518,0.00027671,2]
[314454730,1708366247801,-500.0,0.00027671,2]
[314454731,1708366247810,-500.0,0.00027671,2]
[314454732,1708366247819,-500.0,0.00027671,2]
[314454733,1708366247828,-411.16310783,0.00027671,2]
[314454734,1708366247837,-541.22,0.00027671,2]
[314454735,1708366247846,-1820.61,0.00027671,2]
[314454736,1708366247855,-500.0,0.00027671,2]
[314454737,1708366247865,-500.0,0.00027671,2]
[314454738,1708366247874,-500.0,0.00027671,2]
[314454739,1708366247883,-540.01660277,0.00027671,2]
[314454740,1708366247893,-520.0,0.00027671,2]
[314454741,1708366247902,-1000.0,0.00027671,2]
[314454742,1708366247911,-500.0,0.00027671,2]
[314454743,1708366247921,-500.0,0.00027671,2]
[314454744,1708366247930,-614.62,0.00027671,2]
[314454745,1708366247939,-500.0,0.00027671,2]
[314454746,1708366247948,-500.0,0.00027671,2]
[314454747,1708366247956,-500.0,0.00027671,2]
[314454748,1708366247966,-1000.0,0.00027671,2]
[314454749,1708366247976,-500.0,0.00027671,2]
[314454750,1708366247985,-500.0,0.00027671,2]
[314454751,1708366247993,-500.0,0.00027671,2]
[314454752,1708366248003,-500.0,0.00027671,2]
[314454753,1708366248012,-500.0,0.00027671,2]
[314454754,1708366248021,-537.2,0.00027671,2]
[314454755,1708366248031,-532.05,0.00027671,2]
[314454756,1708366248040,-500.0,0.00027671,2]
[314454757,1708366248048,-500.0,0.00027671,2]
[314454758,1708366248058,-500.0,0.00027671,2]
[314454759,1708366248067,-500.0,0.00027671,2]
[314454760,1708366248075,-2350.38,0.00027671,2]
[314454761,1708366248086,-500.0,0.00027671,2]
[314454762,1708366248095,-500.0,0.00027671,2]
[314454763,1708366248104,-500.0,0.00027671,2]
[314454764,1708366248114,-357.34149032,0.00027671,2]
[314454765,1708366248124,-500.0,0.00027671,2]
[314454766,1708366248133,-500.0,0.00027671,2]
[314454767,1708366248142,-500.0,0.00027671,2]
[314454768,1708366248151,-500.0,0.00027671,2]
[314454769,1708366248160,-500.0,0.00027671,2]
[314454770,1708366248169,-500.0,0.00027671,2]
[314454771,1708366248178,-500.0,0.00027671,2]
[314454772,1708366248187,-500.0,0.00027671,2]
[314454773,1708366248196,-580.43128742,0.00027671,2]
[314454774,1708366248205,-500.0,0.00027671,2]
[314454775,1708366248214,-1153.17,0.00027671,2]
[314454776,1708366248225,-500.0,0.00027671,2]
[314454777,1708366248234,-500.0,0.00027671,2]
[314454778,1708366248244,-500.0,0.00027671,2]
[314454779,1708366248253,-500.0,0.00027671,2]
[314454780,1708366248262,-1024.68,0.00027671,2]
[314454781,1708366248272,-500.0,0.00027671,2]
[314454782,1708366248282,-500.0,0.00027671,2]